fUST/lending_fUST_20250125
["ID","MTS","AMOUNT","RATE_DAILY","PERIOD"]
[350372348,1737816645896,-517.29331169,0.00017214,2]
[350372350,1737816645905,-500.0,0.00017214,2]
[350372353,1737816645915,-196.45676093,0.00017214,2]
[350372354,1737816645923,-489.93980475,0.00017214,2]
[350372356,1737816645932,-500.0,0.00017214,2]
[350372359,1737816645942,-515.63745862,0.00017214,2]
[350372361,1737816645951,-661.86,0.00017214,2]
[350372362,1737816645968,-500.0,0.00017214,2]
[350372364,1737816645977,-593.81,0.00017214,2]
[350372366,1737816645987,-589.26,0.00017214,2]
[350372369,1737816645996,-500.0,0.00017214,2]
[350372371,1737816646005,-500.0,0.00017214,2]
[350372372,1737816646016,-500.0,0.00017214,2]
[350372374,1737816646026,-500.0,0.00017214,2]
[350372376,1737816646035,-500.0,0.00017214,2]
[350372378,1737816646044,-500.66553083,0.00017214,2]
[350372380,1737816646055,-500.0,0.00017214,2]
[350372382,1737816646064,-500.0,0.00017214,2]
[350372384,1737816646074,-742.91,0.00017214,2]
[350372386,1737816646083,-500.0,0.00017214,2]
[350372388,1737816646093,-500.0,0.00017214,2]
[350372390,1737816646102,-500.0,0.00017214,2]
[350372392,1737816646111,-1618.75,0.00017214,2]
[350372395,1737816646121,-513.54440858,0.00017214,2]
[350372397,1737816646130,-500.0,0.00017214,2]
[350372398,1737816646140,-565.51365423,0.00017214,2]
[350372401,1737816646150,-505.89681791,0.00017214,2]
[350372403,1737816646160,-500.0,0.00017214,2]
[350372404,1737816646169,-500.0,0.00017214,2]
[350372406,1737816646179,-500.0,0.00017214,2]
[350372409,1737816646189,-500.0,0.00017214,2]
[350372411,1737816646198,-500.0,0.00017214,2]
[350372413,1737816646208,-500.0,0.00017214,2]
[350372414,1737816646218,-500.0,0.00017214,2]
[350372415,1737816646227,-500.0,0.00017214,2]
[350372416,1737816646237,-500.0,0.00017214,2]
[350372417,1737816646246,-1714.84,0.00017214,2]
[350372418,1737816646255,-500.0,0.00017214,2]
[350372420,1737816646264,-500.0,0.00017214,2]
[350372422,1737816646274,-500.0,0.00017214,2]
[350372424,1737816646284,-500.0,0.00017214,2]
[350372426,1737816646293,-500.0,0.00017214,2]
[350372428,1737816646302,-500.0,0.00017214,2]
[350372430,1737816646311,-500.0,0.00017214,2]
[350372432,1737816646321,-500.0,0.00017214,2]
[350372434,1737816646330,-500.0,0.00017214,2]
[350372436,1737816646339,-938.26,0.00017214,2]
[350372438,1737816646349,-300.0,0.00017214,2]
[350372440,1737816646358,-500.0,0.00017214,2]
[350372442,1737816646367,-500.0,0.00017214,2]
[350372444,1737816646377,-421.3403923,0.00017214,2]
[350372446,1737816646386,-500.0,0.00017214,2]
[350372448,1737816646395,-500.0,0.00017214,2]
[350372450,1737816646405,-500.0,0.00017214,2]
[350372452,1737816646414,-892.78,0.00017214,2]
[350372454,1737816646423,-500.0,0.00017214,2]
[350372456,1737816646432,-500.0,0.00017214,2]
[350372458,1737816646441,-500.0,0.00017214,2]
[350372460,1737816646451,-1000.0,0.00017214,2]
[350372462,1737816646460,-500.0,0.00017214,2]
[350372464,1737816646469,-500.0,0.00017214,2]
[350372466,1737816646478,-691.55,0.00017214,2]
[350372468,1737816646487,-518.93,0.00017214,2]
[350372470,1737816646496,-500.0,0.00017214,2]
[350372472,1737816646505,-500.0,0.00017214,2]
[350372474,1737816646515,-847.95,0.00017214,2]
[350372476,1737816646524,-500.0,0.00017214,2]
[350372478,1737816646534,-500.0,0.00017214,2]
[350372480,1737816646543,-1907.45,0.00017214,2]
[350372482,1737816646553,-500.0,0.00017214,2]
[350372484,1737816646562,-279.61325516,0.00017214,2]
[350372486,1737816646571,-500.0,0.00017214,2]
[350372488,1737816646581,-830.31,0.00017214,2]
[350372490,1737816646591,-500.0,0.00017214,2]
[350372492,1737816646600,-500.0,0.00017214,2]
[350372494,1737816646610,-500.0,0.00017214,2]
[350372496,1737816646619,-500.0,0.00017214,2]
[350372498,1737816646628,-598.33,0.00017214,2]
[350372501,1737816646637,-500.0,0.00017214,2]
[350372504,1737816646646,-500.0,0.00017214,2]
[350372507,1737816646655,-500.0,0.00017214,2]
[350372510,1737816646664,-636.84,0.00017214,2]
[350372513,1737816646674,-500.0,0.00017214,2]
[350372516,1737816646683,-500.0,0.00017214,2]
[350372519,1737816646692,-239.59677203,0.00017214,2]
[350372522,1737816646701,-500.0,0.00017214,2]
[350372524,1737816646710,-601.48,0.00017214,2]
[350372525,1737816646719,-276.68325365,0.00017214,2]
[350372528,1737816646729,-500.0,0.00017214,2]
[350372531,1737816646738,-500.0,0.00017214,2]
[350372534,1737816646747,-500.0,0.00017214,2]
[350372537,1737816646756,-500.0,0.00017214,2]
[350372540,1737816646766,-564.5,0.00017214,2]
[350372543,1737816646775,-504.12324223,0.00017214,2]
[350372546,1737816646785,-687.58,0.00017214,2]
[350372548,1737816646794,-500.0,0.00017214,2]
[350372550,1737816646803,-500.0,0.00017214,2]
[350372552,1737816646813,-420.0,0.00017232,2]
[350372554,1737816646822,-500.0,0.0001726,2]
[350372556,1737816646832,-500.0,0.0001726,2]
[350372558,1737816646841,-500.0,0.0001726,2]
[350372560,1737816646851,-500.0,0.0001726,2]
[350372562,1737816646860,-1107.7,0.0001726,2]
[350372564,1737816646869,-1803.01,0.0001726,2]
[350372566,1737816646880,-799.36,0.0001726,2]
[350372568,1737816646889,-3554.03,0.00017271,2]
[350372570,1737816646898,-1502.32,0.00017271,2]
[350372572,1737816646908,-1743.11,0.00017271,2]
[350372574,1737816646917,-900.65,0.00017271,2]
[350372576,1737816646926,-550.08873113,0.00017271,2]
[350372578,1737816646936,-638.32,0.00017271,2]
[350372580,1737816646945,-2114.29,0.00017271,2]
[350372582,1737816646955,-577.77,0.00017271,2]
[350372584,1737816646964,-656.9,0.00017271,2]
[350372586,1737816646974,-1866.96,0.00017271,2]
[350372588,1737816646983,-2858.67,0.00017271,2]
[350372590,1737816646992,-973.25,0.00017271,2]
[350372592,1737816647003,-542.49,0.00017271,2]
[350372594,1737816647013,-2344.5,0.00017271,2]
[350372608,1737816647134,-1329.48,0.00017271,2]
[350372610,1737816647144,-1084.96,0.00017271,2]
[350372612,1737816647153,-2071.69,0.00017272,2]
[350372614,1737816647162,-500.0,0.00017272,2]
[350372616,1737816647172,-500.0,0.00017272,2]
[350372618,1737816647181,-709.39,0.00017272,2]
[350372620,1737816647190,-500.0,0.00017272,2]
[350372622,1737816647199,-500.0,0.00017272,2]
[350372624,1737816647209,-494.86812116,0.00017272,2]
[350372626,1737816647218,-933.59,0.00017272,2]
[350372628,1737816647227,-500.0,0.00017272,2]
[350372630,1737816647236,-500.0,0.00017272,2]
[350372632,1737816647245,-575.56,0.00017272,2]
[350372634,1737816647255,-500.0,0.00017272,2]
[350372636,1737816647264,-500.0,0.00017272,2]
[350372638,1737816647273,-597.61,0.00017272,2]
[350372640,1737816647282,-906.8,0.00017272,2]
[350372642,1737816647291,-508.71,0.00017272,2]
[350372644,1737816647300,-500.0,0.00017272,2]
[350372646,1737816647309,-242.63584905,0.00017272,2]
[350372648,1737816647318,-500.0,0.00017272,2]
[350372650,1737816647327,-445.31860013,0.00017272,2]
[350372652,1737816647337,-500.0,0.00017272,2]
[350372654,1737816647346,-740.91,0.00017272,2]
[350372656,1737816647355,-719.62,0.00017272,2]
[350372658,1737816647365,-1219.8,0.00017272,2]
[350372660,1737816647374,-507.07728348,0.00017272,2]
[350372662,1737816647383,-500.0,0.00017272,2]
[350372664,1737816647392,-2573.92,0.00017272,2]
[350372666,1737816647401,-500.0,0.00017272,2]
[350372668,1737816647410,-13697.42,0.00017272,2]
[350372670,1737816647419,-517.13,0.00017272,2]
[350372672,1737816647429,-500.0,0.00017272,2]
[350372674,1737816647438,-1177.41,0.00017272,2]
[350372676,1737816647448,-521.35,0.00017272,2]
[350372678,1737816647457,-500.0,0.00017272,2]
[350372680,1737816647466,-617.22,0.00017272,2]
[350372682,1737816647475,-500.0,0.00017272,2]
[350372684,1737816647485,-500.0,0.00017272,2]
[350372686,1737816647495,-622.15,0.00017272,2]
[350372688,1737816647504,-500.0,0.00017272,2]
[350372690,1737816647513,-500.0,0.00017272,2]
[350372692,1737816647522,-579.45,0.00017272,2]
[350372694,1737816647532,-2154.5,0.00017272,2]
[350372696,1737816647542,-500.0,0.00017272,2]
[350372698,1737816647551,-500.0,0.00017272,2]
[350372700,1737816647561,-993.8,0.00017272,2]
[350372702,1737816647571,-500.0,0.00017272,2]
[350372704,1737816647581,-9470.4,0.00017272,2]
[350372706,1737816647590,-40182.84,0.00017272,2]
[350372708,1737816647602,-2220.26,0.00017272,2]
[350372710,1737816647612,-500.0,0.00017272,2]
[350372713,1737816647621,-721.72,0.00017272,2]
[350372715,1737816647631,-542.49,0.00017272,2]
[350372717,1737816647641,-1093.64,0.00017272,2]
[350372719,1737816647651,-90.21553775,0.00017272,2]
[350372756,1737816647999,-778.80904322,0.00016407,2]
[350372758,1737816648008,-500.0,0.00016438,2]
[350372760,1737816648018,-500.0,0.00016438,2]
[350372762,1737816648031,-500.0,0.00016438,2]
[350372764,1737816648040,-500.0,0.00016575,2]
[350372766,1737816648052,-500.0,0.00016575,2]
[350372768,1737816648061,-500.0,0.00016712,2]
[350372770,1737816648071,-500.0,0.00016849,2]
[350372772,1737816648080,-500.0,0.00016986,2]
[350372774,1737816648090,-635.67635,0.00016998,2]
[350372776,1737816648101,-500.0,0.00016999,2]
[350372778,1737816648110,-500.0,0.00017123,2]
[350372780,1737816648120,-500.0,0.00017136,2]
[350372782,1737816648130,-500.0,0.0001726,2]
[350372784,1737816648139,-500.0,0.00017271,2]
[350372786,1737816648149,-409.78446225,0.00017272,2]
[350372788,1737816648159,-500.0,0.00017273,2]
[350372790,1737816648168,-500.0,0.00017273,2]
[350372792,1737816648178,-500.0,0.00017273,2]
[350372794,1737816648188,-500.0,0.00017273,2]
[350372796,1737816648198,-355.32452937,0.00017273,2]
[350372798,1737816648208,-500.0,0.00017273,2]
[350372800,1737816648217,-500.0,0.00017273,2]
[350372802,1737816648226,-500.0,0.00017273,2]
[350372804,1737816648236,-490.68169986,0.00017273,2]
[350372806,1737816648245,-500.0,0.00017273,2]
[350372808,1737816648254,-596.11,0.00017273,2]
[350372809,1737816648263,-500.0,0.00017273,2]
[350372811,1737816648273,-612.41,0.00017273,2]
[350372813,1737816648282,-500.0,0.00017273,2]
[350372815,1737816648291,-500.0,0.00017273,2]
[350372817,1737816648301,-500.0,0.00017273,2]
[350372819,1737816648310,-503.65967798,0.00017273,2]
[350372821,1737816648319,-500.0,0.00017273,2]
[350372823,1737816648329,-999.84,0.00017273,2]
[350372825,1737816648338,-451.85745147,0.00017273,2]
[350372827,1737816648349,-500.0,0.00017273,2]
[350372829,1737816648360,-542.49,0.00017297,2]
[350372831,1737816648369,-1023.76286144,0.00017318,2]
[350372833,1737816648379,-542.49,0.00017349,2]
[350372835,1737816648389,-542.49,0.00017349,2]
[350372837,1737816648399,-542.49,0.00017349,2]
[350372839,1737816648409,-542.49,0.00017349,2]
[350372841,1737816648419,-542.51,0.00017349,2]
[350372843,1737816648429,-10588.68,0.0001735,2]
[350372845,1737816648438,-1064.04,0.0001735,2]
[350372847,1737816648448,-500.0,0.00017351,2]
[350372849,1737816648457,-500.0,0.00017351,2]
[350372851,1737816648467,-202.90812996,0.00017351,2]
[350372853,1737816648476,-500.0,0.00017351,2]
[350372855,1737816648485,-500.0,0.00017351,2]
[350372857,1737816648496,-500.0,0.00017351,2]
[350372859,1737816648505,-500.0,0.00017351,2]
[350372861,1737816648515,-500.0,0.00017351,2]
[350372863,1737816648524,-500.0,0.00017351,2]
[350372865,1737816648534,-500.0,0.00017351,2]
[350372867,1737816648543,-585.67,0.00017351,2]
[350372869,1737816648552,-500.0,0.00017351,2]
[350372871,1737816648562,-500.0,0.00017351,2]
[350372873,1737816648572,-500.0,0.00017351,2]
[350372875,1737816648582,-830.0,0.00017351,2]
[350372877,1737816648591,-508.73815778,0.00017351,2]
[350372879,1737816648603,-502.63905769,0.00017351,2]
[350372881,1737816648613,-549.61,0.00017351,2]
[350372883,1737816648624,-500.0,0.00017351,2]
[350372885,1737816648633,-630.61,0.00017351,2]
[350372887,1737816648643,-500.0,0.00017351,2]
[350372889,1737816648652,-500.0,0.00017351,2]
[350372891,1737816648661,-314.91188041,0.00017351,2]
[350372893,1737816648671,-867.79,0.00017351,2]
[350372895,1737816648681,-500.0,0.00017351,2]
[350372897,1737816648690,-500.0,0.00017351,2]
[350372899,1737816648699,-500.0,0.00017351,2]
[350372901,1737816648709,-516.01,0.00017351,2]
[350372903,1737816648719,-721.97,0.00017351,2]
[350372905,1737816648728,-500.0,0.00017351,2]
[350372907,1737816648738,-263.18280852,0.00017351,2]
[350372909,1737816648747,-221.32140884,0.00017351,2]
[350373329,1737816653009,788.22,0.00010959,2]
[350376302,1737816794213,3000.0,0.00022,30]
[350376303,1737817038054,200.4,0.00015,2]
[350376327,1737817219541,1000.0,0.00022,30]
[350376328,1737817219863,1000.0,0.00022,30]
[350376329,1737817220711,1000.0,0.00022,30]
[350376330,1737817221058,1000.0,0.00022,30]
[350376331,1737817221374,1000.0,0.00022,30]
[350376332,1737817221714,1000.0,0.00022,30]
[350376333,1737817222033,1000.0,0.00022,30]
[350376334,1737817222375,1000.0,0.00022,30]
[350376335,1737817222772,1000.0,0.00022,30]
[350376336,1737817223073,1000.0,0.00022,30]
[350376337,1737817246260,1000.0,0.00022,30]
[350376338,1737817246585,1000.0,0.00022,30]
[350376339,1737817246913,1000.0,0.00022,30]
[350376340,1737817247833,1000.0,0.00022,30]
[350376341,1737817248337,1000.0,0.00022,30]
[350376342,1737817248687,1000.0,0.00022,30]
[350376343,1737817337877,3966.78346015,0.00022,30]
[350376345,1737817562954,201.6433,0.00013973,2]
[350376405,1737817832718,-168.2569466,0.00015249,2]
[350376407,1737817832728,-168.2569466,0.00015403,2]
[350376409,1737817832738,-1038.01976372,0.00015976,2]
[350376411,1737817832748,-232.08035128,0.00016337,2]
[350376413,1737817832757,-232.08035125,0.00016337,2]
[350376415,1737817832767,-232.08035125,0.00016338,2]
[350376417,1737817832777,-232.08035125,0.00016338,2]
[350376419,1737817832786,-232.08035125,0.00016338,2]
[350376421,1737817832795,-300.0,0.00016399,2]
[350376423,1737817832805,-20375.63393171,0.000164,2]
[350376425,1737817832815,-320.28004344,0.00016436,2]
[350376427,1737817832825,-500.0,0.00016437,2]
[350376429,1737817832834,-500.0,0.00016437,2]
[350376431,1737817832843,-634.35267239,0.00016437,2]
[350376433,1737817832853,-500.0,0.00016437,2]
[350376435,1737817832862,-500.0,0.00016437,2]
[350376437,1737817832871,-500.0,0.00016437,2]
[350376439,1737817832881,-500.0,0.00016437,2]
[350376441,1737817832891,-500.0,0.00016437,2]
[350376443,1737817832900,-500.0,0.00016437,2]
[350376445,1737817832909,-500.0,0.00016437,2]
[350376447,1737817832919,-500.0,0.00016437,2]
[350376449,1737817832929,-500.0,0.00016437,2]
[350376452,1737817832938,-574.41859499,0.00016437,2]
[350376455,1737817832948,-500.0,0.00016437,2]
[350376457,1737817832957,-500.0,0.00016437,2]
[350376460,1737817832967,-500.0,0.00016437,2]
[350376463,1737817832976,-500.0,0.00016437,2]
[350376465,1737817832985,-500.0,0.00016437,2]
[350376468,1737817832994,-500.0,0.00016437,2]
[350376470,1737817833004,-500.0,0.00016437,2]
[350376472,1737817833014,-500.0,0.00016437,2]
[350376474,1737817833024,-500.0,0.00016437,2]
[350376476,1737817833033,-500.0,0.00016437,2]
[350376478,1737817833043,-500.0,0.00016437,2]
[350376480,1737817833053,-500.0,0.00016437,2]
[350376482,1737817833062,-500.0,0.00016437,2]
[350376484,1737817833072,-500.0,0.00016437,2]
[350376486,1737817833081,-562.31191451,0.00016437,2]
[350376488,1737817833091,-500.0,0.00016437,2]
[350376490,1737817833100,-500.0,0.00016437,2]
[350376492,1737817833110,-500.0,0.00016437,2]
[350376494,1737817833119,-500.0,0.00016437,2]
[350376496,1737817833129,-500.0,0.00016437,2]
[350376498,1737817833139,-500.0,0.00016437,2]
[350376500,1737817833149,-500.0,0.00016437,2]
[350376502,1737817833158,-500.0,0.00016437,2]
[350376504,1737817833169,-500.0,0.00016437,2]
[350376506,1737817833179,-500.0,0.00016437,2]
[350376508,1737817833188,-500.0,0.00016437,2]
[350376510,1737817833198,-500.0,0.00016437,2]
[350376512,1737817833208,-500.0,0.00016437,2]
[350376514,1737817833218,-500.0,0.00016437,2]
[350376516,1737817833228,-500.0,0.00016437,2]
[350376517,1737817833237,-282.19707875,0.00016437,2]
[350376518,1737817833246,-500.0,0.00016437,2]
[350376519,1737817833256,-500.0,0.00016437,2]
[350376520,1737817833266,-384.06117514,0.00016437,2]
[350376521,1737817833276,-500.0,0.00016437,2]
[350376522,1737817833285,-500.0,0.00016437,2]
[350376523,1737817833294,-500.0,0.00016437,2]
[350376524,1737817833304,-167.18991251,0.00016437,2]
[350376525,1737817833314,-500.0,0.00016437,2]
[350376526,1737817833324,-500.0,0.00016437,2]
[350376527,1737817833334,-500.0,0.00016437,2]
[350376528,1737817833343,-500.0,0.00016437,2]
[350376529,1737817833353,-500.0,0.00016437,2]
[350376530,1737817833362,-500.0,0.00016437,2]
[350376531,1737817833372,-477.3905884,0.00016437,2]
[350376532,1737817833380,-500.0,0.00016437,2]
[350376533,1737817833390,-500.0,0.00016437,2]
[350376534,1737817833399,-500.0,0.00016437,2]
[350376535,1737817833408,-500.0,0.00016437,2]
[350376536,1737817833419,-500.0,0.00016437,2]
[350376537,1737817833432,-500.0,0.00016437,2]
[350376538,1737817833442,-500.0,0.00016437,2]
[350376539,1737817833452,-500.0,0.00016437,2]
[350376541,1737817833462,-229.84166897,0.00016437,2]
[350376543,1737817833472,-500.0,0.00016437,2]
[350376545,1737817833481,-564.17815672,0.00016437,2]
[350376547,1737817833491,-500.0,0.00016437,2]
[350376549,1737817833501,-500.0,0.00016437,2]
[350376551,1737817833511,-500.0,0.00016437,2]
[350376553,1737817833521,-158.679604,0.00016437,2]
[350376555,1737817833531,-500.0,0.00016437,2]
[350376557,1737817833540,-650.0,0.00016437,2]
[350376559,1737817833550,-500.0,0.00016437,2]
[350376561,1737817833560,-500.0,0.00016437,2]
[350376563,1737817833570,-500.0,0.00016437,2]
[350376565,1737817833581,-500.0,0.00016437,2]
[350376567,1737817833592,-500.0,0.00016437,2]
[350376569,1737817833602,-500.0,0.00016437,2]
[350376571,1737817833611,-500.0,0.00016437,2]
[350376573,1737817833621,-500.0,0.00016437,2]
[350376575,1737817833631,-500.0,0.00016437,2]
[350376576,1737817833641,-500.0,0.00016437,2]
[350376579,1737817833650,-500.0,0.00016437,2]
[350376581,1737817833660,-500.0,0.00016437,2]
[350376582,1737817833670,-500.0,0.00016437,2]
[350376585,1737817833679,-500.0,0.00016437,2]
[350376587,1737817833689,-200.0,0.00016437,2]
[350376589,1737817833699,-500.0,0.00016437,2]
[350376590,1737817833709,-550.0,0.00016437,2]
[350376592,1737817833718,-500.0,0.00016437,2]
[350376595,1737817833728,-500.0,0.00016437,2]
[350376597,1737817833738,-500.0,0.00016437,2]
[350376599,1737817833747,-469.33057535,0.00016437,2]
[350376601,1737817833757,-500.0,0.00016437,2]
[350376603,1737817833767,-500.0,0.00016437,2]
[350376605,1737817833777,-500.0,0.00016437,2]
[350376606,1737817833787,-500.0,0.00016437,2]
[350376608,1737817833797,-500.0,0.00016437,2]
[350376610,1737817833806,-500.0,0.00016437,2]
[350376613,1737817833817,-500.0,0.00016437,2]
[350376615,1737817833827,-500.0,0.00016437,2]
[350376617,1737817833837,-500.0,0.00016437,2]
[350376619,1737817833847,-499.99999999,0.00016437,2]
[350376621,1737817833858,-502.94769296,0.00016438,2]
[350376623,1737817833868,-510.8772051,0.00016438,2]
[350376625,1737817833878,-500.0,0.00016438,2]
[350376627,1737817833888,-500.0,0.00016438,2]
[350376629,1737817833898,-500.0,0.00016438,2]
[350376631,1737817833908,-500.0,0.00016438,2]
[350376633,1737817833918,-500.0,0.00016438,2]
[350376635,1737817833930,-500.0,0.00016438,2]
[350376637,1737817833940,-211.40074694,0.00016438,2]
[350376639,1737817833949,-500.0,0.00016438,2]
[350376641,1737817833959,-500.0,0.00016438,2]
[350376643,1737817833969,-500.0,0.00016438,2]
[350376644,1737817833978,-500.0,0.00016438,2]
[350376647,1737817833989,-500.0,0.00016438,2]
[350376648,1737817833999,-658.45,0.00016438,2]
[350376650,1737817834008,-500.0,0.00016438,2]
[350376652,1737817834018,-500.0,0.00016438,2]
[350376654,1737817834027,-500.0,0.00016438,2]
[350376656,1737817834037,-585.54,0.00016438,2]
[350376658,1737817834047,-689.06,0.00016438,2]
[350376660,1737817834056,-500.0,0.00016438,2]
[350376662,1737817834066,-394.92445392,0.00016438,2]
[350376667,1737817834100,-105.07554608,0.00016438,2]
[350376668,1737817834109,-558.05177927,0.00016438,2]
[350376670,1737817834119,-500.0,0.00016438,2]
[350376672,1737817834130,-500.0,0.00016438,2]
[350376674,1737817834140,-500.0,0.00016438,2]
[350376676,1737817834150,-500.0,0.00016438,2]
[350376678,1737817834159,-500.0,0.00016438,2]
[350376680,1737817834169,-500.0,0.00016438,2]
[350376682,1737817834179,-236.61571457,0.00016438,2]
[350376684,1737817834189,-549.51757859,0.00016438,2]
[350376686,1737817834198,-500.0,0.00016438,2]
[350376688,1737817834208,-500.0,0.00016438,2]
[350376690,1737817834217,-500.0,0.00016438,2]
[350376692,1737817834227,-515.99982328,0.00016438,2]
[350376694,1737817834238,-500.0,0.00016438,2]
[350376696,1737817834248,-500.0,0.00016438,2]
[350376698,1737817834258,-500.0,0.00016438,2]
[350376700,1737817834268,-500.0,0.00016438,2]
[350376702,1737817834278,-500.0,0.00016438,2]
[350376704,1737817834288,-300.73472603,0.00016438,2]
[350376706,1737817834299,-500.0,0.00016438,2]
[350376708,1737817834309,-500.0,0.00016438,2]
[350376710,1737817834320,-500.0,0.00016438,2]
[350376712,1737817834331,-500.0,0.00016438,2]
[350376714,1737817834340,-565.70273389,0.00016438,2]
[350376716,1737817834350,-500.0,0.00016438,2]
[350376718,1737817834360,-599.72865573,0.00016438,2]
[350376720,1737817834370,-500.0,0.00016438,2]
[350376722,1737817834381,-942.42,0.00016438,2]
[350376724,1737817834391,-500.0,0.00016438,2]
[350376726,1737817834400,-321.65089685,0.00016438,2]
[350376728,1737817834410,-501.30812417,0.00016438,2]
[350376730,1737817834423,-500.0,0.00016438,2]
[350376732,1737817834434,-500.0,0.00016438,2]
[350376734,1737817834443,-500.0,0.00016438,2]
[350376736,1737817834453,-518.14,0.00016438,2]
[350376738,1737817834464,-500.0,0.00016438,2]
[350376740,1737817834474,-1000.0,0.00016438,2]
[350376742,1737817834484,-500.0,0.00016438,2]
[350376744,1737817834494,-500.74311581,0.00016438,2]
[350376745,1737817834504,-500.0,0.00016438,2]
[350376747,1737817834514,-160.462983,0.00016438,2]
[350376749,1737817834524,-453.17521676,0.00016438,2]
[350376752,1737817834535,-500.0,0.00016438,2]
[350376753,1737817834545,-500.0,0.00016438,2]
[350376755,1737817834555,-500.0,0.00016438,2]
[350376757,1737817834564,-500.0,0.00016438,2]
[350376759,1737817834574,-500.0,0.00016438,2]
[350376761,1737817834585,-500.0,0.00016438,2]
[350376764,1737817834594,-500.0,0.00016438,2]
[350376766,1737817834605,-500.0,0.00016438,2]
[350376768,1737817834615,-500.0,0.00016438,2]
[350376770,1737817834625,-500.0,0.00016438,2]
[350376771,1737817834635,-830.0,0.00016438,2]
[350376774,1737817834645,-500.0,0.00016438,2]
[350376775,1737817834655,-500.0,0.00016438,2]
[350376778,1737817834664,-500.0,0.00016438,2]
[350376780,1737817834674,-500.0,0.00016438,2]
[350376782,1737817834684,-500.0,0.00016438,2]
[350376784,1737817834694,-500.0,0.00016438,2]
[350376786,1737817834704,-589.9,0.00016438,2]
[350376788,1737817834714,-500.0,0.00016438,2]
[350376790,1737817834724,-594.24,0.00016438,2]
[350376792,1737817834734,-502.07699319,0.00016438,2]
[350376794,1737817834743,-500.0,0.00016438,2]
[350376796,1737817834753,-500.0,0.00016438,2]
[350376798,1737817834762,-500.0,0.00016438,2]
[350376800,1737817834772,-500.0,0.00016438,2]
[350376802,1737817834781,-500.0,0.00016438,2]
[350376804,1737817834791,-500.0,0.00016438,2]
[350376806,1737817834800,-500.0,0.00016438,2]
[350376807,1737817834810,-500.0,0.00016438,2]
[350376809,1737817834819,-500.0,0.00016438,2]
[350376811,1737817834828,-500.0,0.00016438,2]
[350376813,1737817834839,-500.0,0.00016438,2]
[350376815,1737817834850,-500.0,0.00016438,2]
[350376817,1737817834860,-500.0,0.00016438,2]
[350376820,1737817834870,-484.04657625,0.00016438,2]
[350376822,1737817834879,-711.96,0.00016438,2]
[350376823,1737817834889,-500.0,0.00016438,2]
[350376825,1737817834899,-500.0,0.00016438,2]
[350376828,1737817834909,-500.0,0.00016438,2]
[350376830,1737817834918,-500.0,0.00016438,2]
[350376832,1737817834927,-546.89,0.00016438,2]
[350376833,1737817834937,-500.0,0.00016438,2]
[350376836,1737817834948,-1638.28,0.00016438,2]
[350376837,1737817834959,-500.0,0.00016438,2]